fUSD/lending_fUSD_20250724
["ID","MTS","AMOUNT","RATE_DAILY","PERIOD"]
[374481162,1753318232860,-151.0,0.00021887,2]
[374481163,1753318232870,-151.0,0.00021887,2]
[374481164,1753318232880,-294.191834,0.00021887,2]
[374481165,1753318232890,-2540.80291904,0.00021897,2]
[374481166,1753318232900,-87370.5,0.000219,2]
[374481167,1753318232910,-100000.0,0.000219,2]
[374481168,1753318232920,-8331.54,0.000219,2]
[374481169,1753318232930,-500.0,0.00021901,2]
[374481170,1753318232942,-500.0,0.00021901,2]
[374481171,1753318232952,-182.49982664,0.00021901,2]
[374481172,1753318232962,-195.19765157,0.00021901,2]
[374481173,1753318232972,-500.0,0.00021901,2]
[374481174,1753318232982,-638.33045761,0.00021901,2]
[374481175,1753318232993,-500.0,0.00021901,2]
[374481176,1753318233003,-500.0,0.00021901,2]
[374481177,1753318233013,-500.0,0.00021901,2]
[374481178,1753318233024,-500.0,0.00021901,2]
[374481179,1753318233035,-449.82885861,0.00021901,2]
[374481180,1753318233044,-314.88020103,0.00021901,2]
[374481181,1753318233054,-300.0,0.00021901,2]
[374481182,1753318233064,-215.40242745,0.00021902,2]
[374481183,1753318233075,-788722.64832501,0.00021902,2]
[374481830,1753318242757,-181.07909289,0.00021802,2]
[374481832,1753318242767,-214.76386134,0.00021902,2]
[374481843,1753318242863,-1208.65600099,0.00021902,2]
[374481869,1753318243123,-539.945,0.00021902,2]
[374481872,1753318243135,-311.68919029,0.00021902,2]
[374481874,1753318243144,-420.26020971,0.00021902,2]
[374481878,1753318243178,-165558.09297451,0.00021902,2]
[374481880,1753318243187,-14003.77496856,0.00021902,2]
[374482155,1753318920638,1000.0,0.00035662,120]
[374482156,1753318928486,1000.0,0.00035662,120]
[374482157,1753318934562,1000.0,0.00035662,120]
[374482158,1753318943087,772.0,0.00035662,120]
[374482159,1753319006323,3179.76254038,0.00035662,120]
[374482165,1753319035345,2748.22866142,0.00035662,120]
[374482167,1753319044653,163.2,0.00013699,2]
[374482172,1753319209308,282.13,0.00025069,120]
[374482193,1753319432166,-151.0,0.00018642,2]
[374482194,1753319432176,-250.0,0.00018916,2]
[374482195,1753319432187,-300.0,0.00018916,2]
[374482196,1753319432198,-363.89,0.00019178,2]
[374482197,1753319432209,-300.0,0.0001927,2]
[374482198,1753319432220,-150.0,0.00019556,2]
[374482199,1753319432230,-411.92223,0.00019567,2]
[374482200,1753319432241,-165.68,0.00019624,2]
[374482201,1753319432251,-150.0,0.00019666,2]
[374482203,1753319432265,-150.0,0.00019677,2]
[374482204,1753319432275,-150.0,0.00019848,2]
[374482206,1753319432284,-318.41,0.00019963,2]
[374482208,1753319432293,-318.41,0.00019973,2]
[374482209,1753319432303,-318.41,0.00019984,2]
[374482210,1753319432313,-150.0,0.00019987,2]
[374482211,1753319432322,-318.41,0.00019994,2]
[374482212,1753319432333,-318.41,0.00020005,2]
[374482214,1753319432342,-1000.0,0.00020011,2]
[374482216,1753319432351,-318.41,0.00020015,2]
[374482218,1753319432360,-318.41,0.00020026,2]
[374482219,1753319432369,-318.41,0.00020036,2]
[374482221,1753319432378,-318.41,0.00020047,2]
[374482223,1753319432387,-282.13,0.00020055,2]
[374482225,1753319432398,-318.41,0.00020057,2]
[374482227,1753319432414,-318.41,0.00020068,2]
[374482229,1753319432423,-318.41,0.00020078,2]
[374482231,1753319432432,-318.41,0.00020089,2]
[374482232,1753319432442,-318.41,0.00020099,2]
[374482234,1753319432451,-318.41,0.0002011,2]
[374482236,1753319432460,-318.41,0.0002012,2]
[374482238,1753319432470,-318.41,0.00020131,2]
[374482240,1753319432479,-150.0,0.0002014,2]
[374482243,1753319432489,-318.41,0.00020141,2]
[374482244,1753319432499,-318.41,0.00020152,2]
[374482246,1753319432509,-150.0,0.0002016,2]
[374482248,1753319432518,-318.41,0.00020162,2]
[374482250,1753319432529,-150.0,0.00020187,2]
[374482252,1753319432538,-163.2,0.00020187,2]
[374482253,1753319432547,-300.0,0.00020256,2]
[374482254,1753319432556,-1200.0,0.00020256,2]
[374482255,1753319432566,-300.0,0.00020257,2]
[374482256,1753319432575,-9022.47,0.00020258,2]
[374482257,1753319432586,-150.0,0.00020284,2]
[374482258,1753319432596,-150.0,0.00020294,2]
[374482259,1753319432607,-164.67,0.00020417,2]
[374482260,1753319432618,-312.36,0.00020432,2]
[374482261,1753319432628,-150.0,0.0002048,2]
[374482262,1753319432638,-792.0,0.0002048,2]
[374482263,1753319432648,-90.28183312,0.00020481,7]
[374482264,1753319432660,-89.71816688,0.00020481,7]
[374482265,1753319432671,-666.0,0.00020485,3]
[374482266,1753319432680,-150.0,0.00020499,2]
[374482267,1753319432690,-300.0,0.00020507,2]
[374482268,1753319432699,-250.0,0.0002052,2]
[374482269,1753319432709,-300.0,0.0002052,2]
[374482270,1753319432719,-150.0,0.00020575,2]
[374482271,1753319432730,-363.89,0.00020687,2]
[374482272,1753319432739,-18160.831672,0.00020818,2]
[374482273,1753319432749,-239.84119403,0.00020818,2]
[374482274,1753319432758,-1681.01110271,0.00020819,2]
[374482275,1753319432770,-6075.56336677,0.00020819,2]
[374482276,1753319432827,-1721.23685974,0.00020819,2]
[374482281,1753319438030,-17056.12979733,0.00020819,2]
[374482282,1753319438040,-150.0,0.00020855,2]
[374482283,1753319438051,-150.0,0.00020858,2]
[374482284,1753319438061,-159.21,0.00020899,2]
[374482285,1753319438072,-964.67604962,0.000209,4]
[374482286,1753319438082,-150.0,0.00020903,2]
[374482287,1753319438092,-170.46,0.00020909,2]
[374482288,1753319438105,-159.21,0.0002091,2]
[374482289,1753319438115,-159.21,0.00020921,2]
[374482290,1753319438126,-150.0,0.00020929,2]
[374482291,1753319438139,-159.21,0.00020932,2]
[374482292,1753319438150,-964.67604953,0.00020934,4]
[374482293,1753319438160,-159.21,0.00020943,2]
[374482294,1753319438170,-159.21,0.00020954,2]
[374482295,1753319438181,-159.21,0.00020965,2]
[374482296,1753319438193,-964.67604953,0.00020969,4]
[374482297,1753319438203,-159.21,0.00020976,2]
[374482298,1753319438215,-159.21,0.00020987,2]
[374482299,1753319438227,-150.0,0.00020988,2]
[374482300,1753319438239,-159.21,0.00020998,2]
[374482301,1753319438249,-964.67604953,0.00021003,4]
[374482302,1753319438262,-159.21,0.00021009,2]
[374482303,1753319438272,-159.21,0.0002102,2]
[374482304,1753319438284,-159.21,0.00021031,2]
[374482305,1753319438295,-964.67604953,0.00021038,4]
[374482306,1753319438306,-159.21,0.00021042,2]
[374482307,1753319438316,-150.0,0.00021043,2]
[374482308,1753319438326,-159.21,0.00021053,2]
[374482309,1753319438336,-159.21,0.00021064,2]
[374482310,1753319438345,-964.67604953,0.00021072,4]
[374482311,1753319438355,-159.21,0.00021075,2]
[374482312,1753319438365,-150.0,0.00021078,2]
[374482313,1753319438375,-159.21,0.00021086,2]
[374482314,1753319438385,-159.21,0.00021097,2]
[374482316,1753319438395,-150.0,0.00021099,2]
[374482318,1753319438405,-964.67604953,0.00021107,4]
[374482320,1753319438414,-159.21,0.00021108,2]
[374482322,1753319438424,-964.67604953,0.00021141,4]
[374482324,1753319438434,-964.67604953,0.00021176,4]
[374482326,1753319438443,-964.67604953,0.0002121,4]
[374482328,1753319438453,-964.67604953,0.00021245,4]
[374482330,1753319438463,-322.74,0.0002126,2]
[374482332,1753319438473,-863.0,0.00021264,2]
[374482334,1753319438482,-21375.0,0.00021264,2]
[374482335,1753319438492,-6054.0,0.00021264,2]
[374482338,1753319438502,-4128.0,0.00021264,2]
[374482340,1753319438512,-150.0,0.00021276,2]
[374482342,1753319438522,-964.67604953,0.00021279,5]
[374482345,1753319438532,-964.67604953,0.00021314,5]
[374482347,1753319438542,-964.67604953,0.00021348,5]
[374482349,1753319438552,-150.0,0.0002136,2]
[374482350,1753319438562,-18832.78244386,0.00021366,2]
[374482353,1753319438572,-1000.0,0.00021378,2]
[374482355,1753319438582,-964.67604953,0.00021383,5]
[374482356,1753319438592,-500.0,0.000214,7]
[374482359,1753319438602,-964.67604953,0.00021417,5]
[374482361,1753319438612,-964.67604953,0.00021452,5]
[374482362,1753319438622,-150.0,0.00021454,2]
[374482364,1753319438632,-150.0,0.00021461,2]
[374482366,1753319438642,-1713.636593,0.00021478,8]
[374482369,1753319438652,-964.67604953,0.00021486,5]
[374482370,1753319438662,-1000.0,0.000215,7]
[374482373,1753319438672,-964.67604953,0.00021521,5]
[374482375,1753319438682,-964.67604953,0.00021555,5]
[374482376,1753319438691,-964.67604953,0.0002159,5]
[374482378,1753319438702,-150.0,0.00021595,2]
[374482380,1753319438713,-1500.0,0.000216,7]
[374482383,1753319438723,-1906.82382891,0.00021617,2]
[374482384,1753319438732,-278.92,0.00021623,2]
[374482386,1753319438742,-183.82,0.00021623,2]
[374482388,1753319438752,-964.67604953,0.00021624,5]
[374482390,1753319438762,-378.0,0.00021643,2]
[374482392,1753319438772,-1906.82382886,0.00021648,2]
[374482394,1753319438782,-964.67604953,0.00021659,5]
[374482396,1753319438792,-1906.82382886,0.0002168,2]
[374482398,1753319438802,-964.67604953,0.00021693,5]
[374482400,1753319438813,-500.0,0.00021699,2]
[374482403,1753319438823,-2100.0,0.000217,7]
[374482404,1753319438832,-17522.58349909,0.000217,2]
[374482406,1753319438842,-2500.0,0.00021702,2]
[374482409,1753319438852,-169.20606613,0.00021702,2]
[374482411,1753319438863,-5824.85734995,0.00021702,2]
[374482412,1753319438877,-1906.82382886,0.00021711,2]
[374482415,1753319438888,-150.0,0.00021715,2]
[374482417,1753319438899,-16691.61162783,0.00021717,2]
[374482419,1753319438908,-5800.67486892,0.00021717,2]
[374482421,1753319438918,-964.67604953,0.00021728,5]
[374482423,1753319438928,-378.0,0.00021737,2]
[374482424,1753319438939,-5000.0,0.00021739,5]
[374482426,1753319438949,-2000.0,0.00021742,2]
[374482429,1753319438960,-500.0,0.00021742,2]
[374482430,1753319438970,-1906.82382886,0.00021743,2]
[374482432,1753319438979,-5824.85734994,0.00021745,2]
[374482434,1753319438989,-247.92,0.00021746,2]
[374482436,1753319439000,-150.0,0.00021747,2]
[374482438,1753319439009,-2810.468,0.00021759,2]
[374482440,1753319439019,-245.104,0.00021759,2]
[374482443,1753319439029,-964.67604953,0.00021762,5]
[374482445,1753319439038,-285.23,0.00021765,2]
[374482447,1753319439048,-1906.82382886,0.00021774,2]
[374482449,1753319439058,-378.0,0.00021779,2]
[374482451,1753319439068,-200.15,0.00021792,2]
[374482453,1753319439078,-200.15,0.00021792,2]
[374482455,1753319439087,-200.15,0.00021792,2]
[374482457,1753319439097,-200.15,0.00021792,2]
[374482459,1753319439106,-964.67604953,0.00021797,6]
[374482461,1753319439116,-2600.0,0.000218,7]
[374482463,1753319439127,-1000.0,0.000218,2]
[374482465,1753319439137,-210.97252602,0.000218,7]
[374482467,1753319439147,-160.0,0.00021801,2]
[374482469,1753319439156,-210.97252602,0.00021801,2]
[374482471,1753319439165,-1000.0,0.00021802,2]
[374482473,1753319439175,-189406.7287,0.00021802,2]
[374482475,1753319439186,-5000.0,0.00021802,2]
[374482477,1753319439197,-157.40561009,0.00021802,2]
[374482479,1753319439209,-1129.37163925,0.00021802,2]
[374482481,1753319439219,-150.0,0.00021805,2]
[374482483,1753319439229,-1906.82382886,0.00021806,2]
[374482485,1753319439239,-200.15,0.00021807,2]
[374482487,1753319439249,-10000.0,0.00021817,2]
[374482489,1753319439261,-964.67604953,0.00021831,6]
[374482491,1753319439271,-1906.82382886,0.00021837,2]
[374482493,1753319439282,-1210.0,0.00021858,2]
[374482495,1753319439293,-1210.0,0.00021858,2]
[374482498,1753319439303,-254.584656,0.00021858,2]
[374482500,1753319439313,-964.67604953,0.00021866,6]
[374482502,1753319439323,-183.82,0.00021868,2]
[374482503,1753319439333,-1906.82382886,0.00021869,2]
[374482505,1753319439342,-150.0,0.00021878,2]
[374482507,1753319439353,-11436.0,0.0002189,2]
[374482509,1753319439363,-364.80472742,0.00021892,2]
[374482511,1753319439372,-163.79,0.00021892,2]
[374482513,1753319439382,-163.79,0.00021892,2]
[374482515,1753319439392,-877727.02687782,0.00021897,2]
[374482517,1753319439402,-500.0,0.000219,7]
[374482519,1753319439411,-2000.0,0.000219,2]
[374482521,1753319439421,-2000.0,0.000219,2]
[374482523,1753319439431,-773.0,0.000219,2]
[374482526,1753319439441,-1906.82382886,0.000219,2]
[374482528,1753319439451,-165.7,0.000219,6]
[374482529,1753319439461,-239.0,0.000219,2]
[374482531,1753319439471,-508.0,0.000219,2]
[374482534,1753319439482,-156.438312,0.000219,4]
[374482536,1753319439491,-156.438312,0.000219,4]
[374482538,1753319439501,-156.438312,0.000219,4]
[374482540,1753319439511,-156.438312,0.000219,4]
[374482542,1753319439521,-156.438312,0.000219,4]
[374482544,1753319439531,-156.438312,0.000219,4]
[374482546,1753319439541,-156.438312,0.000219,4]
[374482548,1753319439550,-156.438312,0.000219,4]
[374482550,1753319439560,-210.89350293,0.000219,4]
[374482551,1753319439570,-210.89350293,0.000219,4]
[374482553,1753319439580,-210.89350293,0.000219,4]
[374482556,1753319439590,-210.89350293,0.000219,4]
[374482557,1753319439601,-210.89350293,0.000219,4]
[374482559,1753319439610,-210.89350293,0.000219,4]
[374482561,1753319439620,-210.89350293,0.000219,4]
[374482563,1753319439630,-210.89350293,0.000219,4]
[374482565,1753319439640,-964.67604953,0.000219,6]
[374482567,1753319439650,-178.06515691,0.000219,4]
[374482570,1753319439660,-178.06515691,0.000219,4]
[374482573,1753319439670,-178.06515691,0.000219,4]
[374482575,1753319439680,-178.06515691,0.000219,4]
[374482577,1753319439690,-178.06515691,0.000219,4]
[374482579,1753319439700,-178.06515691,0.000219,4]
[374482581,1753319439710,-178.06515691,0.000219,4]
[374482583,1753319439719,-178.06515691,0.000219,4]
[374482585,1753319439729,-17522.58,0.000219,2]
[374482587,1753319439739,-378.0,0.000219,2]
[374482589,1753319439749,-387.55584271,0.00021901,2]
[374482591,1753319439759,-1060.15626232,0.00021901,5]
[374482593,1753319439768,-300.0,0.00021901,2]
[374482595,1753319439780,-47315.57290964,0.00021901,2]
[374482597,1753319439790,-151.0,0.00021902,2]
[374482599,1753319439800,-151.0,0.00021902,2]
[374482601,1753319439810,-151.0,0.00021902,2]
[374482603,1753319439820,-151.0,0.00021902,2]
[374482605,1753319439830,-284.706719,0.00021902,2]
[374482607,1753319439839,-192.092345,0.00021902,2]
[374482609,1753319439852,-192.092345,0.00021902,2]
[374482611,1753319439862,-175.401016,0.00021902,2]
[374482613,1753319439871,-175.401016,0.00021902,2]
[374482615,1753319439882,-295.470193,0.00021902,2]
[374482617,1753319439892,-200.0,0.00021902,2]
[374482619,1753319439902,-347.13804,0.00021902,2]
[374482621,1753319439912,-347.13804,0.00021902,2]
[374482623,1753319439921,-151.0,0.00021902,2]
[374482625,1753319439931,-200.0,0.00021902,2]
[374482628,1753319439945,-165.890781,0.00021905,2]
[374482630,1753319439955,-165.890781,0.00021905,2]
[374482632,1753319439965,-151.0,0.00021905,2]
[374482634,1753319439975,-151.0,0.00021906,2]
[374482636,1753319439986,-151.0,0.00021906,2]
[374482638,1753319439996,-151.0,0.00021906,2]
[374482640,1753319440006,-151.0,0.00021906,2]
[374482642,1753319440017,-151.0,0.00021906,2]
[374482644,1753319440027,-994.2182267,0.00021906,2]
[374482646,1753319440039,-150.0,0.00021906,2]
[374482648,1753319440049,-120991.147654,0.00021906,2]
[374482650,1753319440059,-34989.7607306,0.00021906,2]
[374482652,1753319440069,-151.0,0.00021906,2]
[374482654,1753319440079,-4749.6871473,0.00021906,2]
[374482656,1753319440090,-151.0,0.00021906,2]
[374482658,1753319440100,-432.323952,0.00021906,2]
[374482660,1753319440110,-432.323952,0.00021906,2]
[374482662,1753319440119,-324.98043566,0.00021906,2]
[374482664,1753319440129,-165.890781,0.00021906,2]
[374482666,1753319440139,-165.890781,0.00021906,2]
[374482668,1753319440149,-23485.0386083,0.00021906,2]
[374482670,1753319440159,-830.9340046,0.00021906,2]
[374482672,1753319440170,-151.0,0.00021906,2]
[374482674,1753319440180,-364.80472742,0.00021907,2]
[374482676,1753319440190,-163.79,0.00021907,2]
[374482677,1753319440200,-208.315717,0.00021907,2]
[374482678,1753319440210,-208.315717,0.00021907,2]
[374482679,1753319440220,-208.315717,0.00021907,2]
[374482680,1753319440230,-208.315717,0.00021907,2]
[374482714,1753319440656,-151.0,0.00021907,2]
[374482717,1753319440667,-151.0,0.00021907,2]
[374482719,1753319440678,-151.0,0.00021907,2]
[374482721,1753319440688,-151.0,0.00021907,2]
[374482723,1753319440698,-207.394504,0.00021907,2]
[374482725,1753319440708,-345.100265,0.00021907,2]
[374482727,1753319440718,-345.100265,0.00021907,2]
[374482729,1753319440727,-345.100265,0.00021907,2]
[374482731,1753319440737,-345.100265,0.00021907,2]
[374482733,1753319440747,-151.0,0.00021907,2]
[374482735,1753319440757,-202.662518,0.00021907,2]
[374482737,1753319440766,-202.662518,0.00021907,2]
[374482739,1753319440775,-202.662518,0.00021907,2]
[374482741,1753319440789,-202.662518,0.00021907,2]
[374482743,1753319440798,-151.0,0.00021907,2]
[374482745,1753319440808,-151.0,0.00021907,2]
[374482747,1753319440817,-5000.0,0.00021908,2]
[374482749,1753319440827,-5000.0,0.00021908,2]
[374482751,1753319440837,-5000.0,0.00021908,2]
[374482753,1753319440846,-5000.0,0.00021908,2]
[374482755,1753319440856,-5000.0,0.00021908,2]
[374482757,1753319440866,-5000.0,0.00021908,2]
[374482759,1753319440875,-5000.0,0.00021908,2]
[374482761,1753319440885,-5000.0,0.00021908,2]
[374482763,1753319440895,-2644.97203474,0.00021908,2]
[374482765,1753319440904,-150.0,0.00021909,2]
[374482767,1753319440914,-150.0,0.00021909,2]
[374482769,1753319440923,-150.0,0.00021909,2]
[374482771,1753319440933,-150.0,0.00021909,2]
[374482773,1753319440942,-150.0,0.00021909,2]
[374482775,1753319440952,-208.82070007,0.00021909,2]
[374482777,1753319440961,-500.0,0.00021909,2]
[374482779,1753319440971,-500.0,0.00021909,2]
[374482781,1753319440980,-150.0,0.00021909,2]
[374482783,1753319440989,-500.0,0.00021909,2]
[374482785,1753319440999,-150.0,0.00021909,2]
[374482787,1753319441008,-150.0,0.00021909,2]
[374482789,1753319441018,-500.0,0.00021909,2]
[374482791,1753319441028,-500.0,0.00021909,2]
[374482793,1753319441039,-150.0,0.00021909,2]
[374482795,1753319441048,-150.0,0.00021909,2]
[374482797,1753319441058,-150.0,0.00021909,2]
[374482799,1753319441067,-151.0,0.00021909,2]
[374482801,1753319441077,-500.0,0.00021909,2]
[374482803,1753319441087,-150.0,0.00021909,2]
[374482805,1753319441096,-151.0,0.00021909,2]
[374482807,1753319441105,-432.323952,0.00021909,2]
[374482809,1753319441115,-432.323952,0.00021909,2]
[374482811,1753319441124,-500.0,0.00021909,2]
[374482813,1753319441134,-2113.0,0.00021909,2]
[374482815,1753319441143,-1002.0,0.00021909,2]
[374482817,1753319441152,-500.0,0.00021909,2]
[374482819,1753319441162,-500.0,0.00021909,2]
[374482821,1753319441171,-150.0,0.00021909,2]
[374482823,1753319441182,-150.0,0.00021909,2]
[374482825,1753319441191,-150.0,0.00021909,2]
[374482827,1753319441201,-150.0,0.00021909,2]
[374482830,1753319441210,-500.0,0.00021909,2]
[374482832,1753319441221,-150.0,0.00021909,2]
[374482834,1753319441231,-150.0,0.00021909,2]
[374482836,1753319441241,-500.0,0.00021909,2]
[374482838,1753319441251,-210.89350293,0.00021912,4]
[374482840,1753319441264,-178.06515691,0.00021912,4]
[374482842,1753319441273,-150.0,0.00021913,2]
[374482844,1753319441285,-19529.59539429,0.00021914,2]
[374482845,1753319441296,-153.177845,0.00021914,2]
[374482847,1753319441305,-284.706719,0.00021914,2]
[374482850,1753319441315,-192.092345,0.00021914,2]
[374482852,1753319441326,-192.092345,0.00021914,2]
[374482854,1753319441335,-175.401016,0.00021914,2]
[374482856,1753319441345,-175.401016,0.00021914,2]
[374482857,1753319441354,-347.13804,0.00021914,2]
[374482859,1753319441363,-347.13804,0.00021914,2]
[374482862,1753319441375,-151.0,0.00021914,2]
[374482863,1753319441384,-570.314622,0.00021914,2]
[374482865,1753319441393,-570.314622,0.00021914,2]
[374482868,1753319441403,-300.0,0.00021916,2]
[374482870,1753319441413,-208.315717,0.00021916,2]
[374482872,1753319441422,-208.315717,0.00021916,2]
[374482874,1753319441432,-151.0,0.00021916,2]
[374482876,1753319441441,-151.0,0.00021916,2]
[374482877,1753319441451,-151.0,0.00021916,2]
[374482880,1753319441461,-207.394504,0.00021916,2]
[374482882,1753319441470,-345.100265,0.00021916,2]
[374482884,1753319441480,-345.100265,0.00021916,2]
[374482885,1753319441490,-151.323721,0.00021916,2]
[374482887,1753319441499,-202.662518,0.00021916,2]
[374482889,1753319441508,-202.662518,0.00021916,2]
[374482892,1753319441519,-151.0,0.00021916,2]
[374482894,1753319441528,-1540.679568,0.00021916,2]
[374482896,1753319441538,-1540.679568,0.00021916,2]
[374482898,1753319441548,-151.0,0.00021916,2]
[374482900,1753319441557,-151.0,0.00021916,2]
[374482902,1753319441566,-2054.731378,0.00021916,2]
[374482904,1753319441576,-2054.731378,0.00021916,2]
[374482906,1753319441585,-151.0,0.00021916,2]
[374482908,1753319441594,-151.0,0.00021916,2]
[374482910,1753319441604,-151.0,0.00021916,2]
[374482912,1753319441613,-151.0,0.00021916,2]
[374482914,1753319441622,-151.0,0.00021916,2]
[374482916,1753319441631,-151.0,0.00021916,2]
[374482918,1753319441641,-151.0,0.00021916,2]
[374482920,1753319441650,-151.0,0.00021916,2]
[374482922,1753319441660,-151.0,0.00021916,2]
[374482924,1753319441669,-760.404689,0.00021916,2]
[374482926,1753319441679,-151.0,0.00021916,2]
[374482928,1753319441688,-760.404689,0.00021916,2]
[374482930,1753319441698,-151.0,0.00021916,2]
[374482932,1753319441707,-151.0,0.00021916,2]
[374482934,1753319441717,-151.0,0.00021916,2]
[374482936,1753319441726,-150.0,0.00021916,2]
[374482938,1753319441737,-300.0,0.00021916,2]
[374482940,1753319441746,-1476208.01723011,0.00021917,2]
[374482942,1753319441756,-286664.99583338,0.00021917,2]
[374482944,1753319441766,-151.0,0.00021917,2]
[374482946,1753319441775,-151.0,0.00021917,2]
[374482948,1753319441787,-151.0,0.00021917,2]
[374482950,1753319441797,-151.0,0.00021917,2]
[374482952,1753319441806,-151.0,0.00021917,2]
[374482954,1753319441816,-151.0,0.00021917,2]
[374482956,1753319441826,-151.0,0.00021917,2]
[374482958,1753319441836,-151.0,0.00021917,2]
[374482960,1753319441849,-151.0,0.00021917,2]
[374482962,1753319441858,-151.0,0.00021917,2]
[374482964,1753319441868,-151.0,0.00021917,2]
[374482966,1753319441877,-151.0,0.00021917,2]
[374482968,1753319441886,-151.0,0.00021917,2]
[374482970,1753319441895,-151.0,0.00021917,2]
[374482973,1753319441905,-157.15536,0.00021917,2]
[374482975,1753319441915,-233.48648,0.00021917,2]
[374482977,1753319441925,-233.48648,0.00021917,2]
[374482979,1753319441934,-233.48648,0.00021917,2]
[374482981,1753319441943,-233.48648,0.00021917,2]
[374482982,1753319441953,-233.48648,0.00021917,2]
[374482984,1753319441962,-233.48648,0.00021917,2]
[374482987,1753319441972,-233.48648,0.00021917,2]
[374482989,1753319441981,-233.48648,0.00021917,2]
[374482990,1753319441990,-233.48648,0.00021917,2]
[374482992,1753319441999,-233.48648,0.00021917,2]
[374482994,1753319442009,-233.48648,0.00021917,2]
[374482997,1753319442019,-233.48648,0.00021917,2]
[374482999,1753319442029,-233.48648,0.00021917,2]
[374483001,1753319442040,-233.48648,0.00021917,2]
[374483003,1753319442049,-233.48648,0.00021917,2]
[374483005,1753319442059,-233.48648,0.00021917,2]
[374483007,1753319442068,-233.48648,0.00021917,2]
[374483009,1753319442077,-233.48648,0.00021917,2]
[374483011,1753319442086,-233.48648,0.00021917,2]
[374483012,1753319442096,-233.486479,0.00021917,2]
[374483015,1753319442107,-151.0,0.00021917,2]
[374483017,1753319442117,-151.0,0.00021917,2]
[374483018,1753319442128,-151.0,0.00021917,2]
[374483021,1753319442138,-151.0,0.00021917,2]
[374483023,1753319442149,-151.0,0.00021917,2]
[374483025,1753319442158,-151.0,0.00021917,2]
[374483027,1753319442167,-268.84342,0.00021917,2]
[374483029,1753319442176,-151.0,0.00021917,2]
[374483031,1753319442186,-257.57165794,0.00021917,2]
[374483033,1753319442195,-208.315717,0.00021917,2]
[374483035,1753319442206,-208.315717,0.00021917,2]
[374483037,1753319442215,-208.315717,0.00021917,2]
[374483039,1753319442227,-208.315717,0.00021917,2]
[374483041,1753319442236,-208.315717,0.00021917,2]
[374483043,1753319442245,-208.315717,0.00021917,2]
[374483045,1753319442254,-208.315717,0.00021917,2]
[374483047,1753319442267,-208.315717,0.00021917,2]
[374483049,1753319442278,-208.315717,0.00021917,2]
[374483051,1753319442289,-208.315717,0.00021917,2]
[374483053,1753319442300,-208.315717,0.00021917,2]
[374483055,1753319442310,-208.315717,0.00021917,2]
[374483057,1753319442319,-208.315717,0.00021917,2]
[374483059,1753319442329,-208.315712,0.00021917,2]
[374483061,1753319442340,-151.0,0.00021917,2]
[374483063,1753319442349,-151.0,0.00021917,2]
[374483065,1753319442359,-151.0,0.00021917,2]
[374483067,1753319442368,-151.0,0.00021917,2]
[374483069,1753319442377,-151.0,0.00021917,2]
[374483071,1753319442386,-151.0,0.00021917,2]
[374483073,1753319442394,-151.0,0.00021917,2]
[374483074,1753319442404,-151.0,0.00021917,2]
[374483076,1753319442414,-151.0,0.00021917,2]
[374483078,1753319442423,-151.0,0.00021917,2]
[374483080,1753319442433,-151.0,0.00021917,2]